bitfinex/quotes_SOLUSD_20250401
["timestamp","ask_amount","ask_price","bid_price","bid_amount"]
[1743513223015,7.3758439,127.46,127.45,0.063]
[1743513223331,26.02549276,127.46,127.45,0.063]
[1743513223535,7.3758439,127.46,127.45,0.063]
[1743513223715,26.02549276,127.47,127.45,0.063]
[1743513226025,7.3758439,127.46,127.45,0.063]
[1743513227299,26.49474886,127.47,127.45,0.063]
[1743513227300,18.64964886,127.47,127.45,0.063]
[1743513228143,16.0253,127.49,127.45,0.063]
[1743513228144,7.3758439,127.49,127.45,0.063]
[1743513229218,15.2195439,127.49,127.45,0.063]
[1743513229423,7.3758439,127.49,127.45,0.063]
[1743513229623,15.2196439,127.49,127.45,0.063]
[1743513231925,7.3758439,127.47,127.45,0.063]
[1743513232132,26.02549276,127.46,127.45,0.063]
[1743513233019,26.3098159,127.46,127.45,0.063]
[1743513233223,27.9034159,127.46,127.45,0.063]
[1743513233925,39.90689305,127.46,127.45,0.063]
[1743513240531,26.779472,127.46,127.45,0.063]
[1743513240735,38.31329305,127.46,127.45,0.063]
[1743513244652,0.28432314,127.44,127.39,7.04]
[1743513245045,11.53382105,127.43,127.38,16.3776]
[1743513245551,11.53382105,127.43,127.38,20.20725117]
[1743513246130,7.848,127.42,127.38,20.20725117]
[1743513246331,7.848,127.42,127.38,12.35675117]
[1743513246543,7.848,127.42,127.38,8.5271]
[1743513250128,7.848,127.42,127.38,20.20980724]
[1743513251958,7.848,127.42,127.38,16.3775]
[1743513252252,11.53382105,127.43,127.38,16.3775]
[1743513252453,119.72986991,127.45,127.38,20.36180733]
[1743513252841,19.37972105,127.46,127.38,39.98810733]
[1743513254556,26.49494886,127.47,127.41,20.0]
[1743513254746,38.02876991,127.47,127.41,20.0]
[1743513255051,38.02876991,127.47,127.42,6.98]
[1743513255562,11.56382105,127.48,127.42,6.98]
[1743513255766,26.05681419,127.48,127.42,6.98]
[1743513255948,33.90141419,127.48,127.42,6.98]
[1743513256846,33.90141419,127.48,127.43,7.8474]
[1743513257064,15.25176533,127.48,127.43,7.8474]
[1743513260843,0.03,127.48,127.43,7.8474]
[1743513261767,7.37716533,127.46,127.41,20.0]
[1743513262881,7.37716533,127.46,127.4,6.98]
[1743513262882,7.8468,127.44,127.4,6.98]
[1743513263070,7.8468,127.44,127.38,5.51140733]
[1743513263071,15.22396533,127.44,127.39,6.98]
[1743513263448,7.8468,127.44,127.39,6.98]
[1743513265264,15.22396533,127.44,127.39,6.98]
[1743513266751,7.8455,127.46,127.39,14.8298]
[1743513267063,15.22266533,127.46,127.39,14.8298]
[1743513268067,7.37716533,127.45,127.39,6.98]
[1743513268262,7.37716533,127.44,127.38,13.36170733]
[1743513268469,7.37716533,127.44,127.39,6.98]
[1743513268770,7.37716533,127.43,127.39,0.063]
[1743513269987,7.848,127.42,127.39,0.063]
[1743513272175,15.22486533,127.43,127.39,0.063]
[1743513272763,7.37716533,127.42,127.39,0.063]
[1743513273258,15.22486533,127.43,127.39,0.063]
[1743513273465,33.87381419,127.44,127.39,0.063]
[1743513274875,7.37716533,127.43,127.39,0.063]
[1743513275666,15.22496533,127.43,127.39,0.063]
[1743513277979,7.37716533,127.42,127.39,0.063]
[1743513279169,7.37716533,127.41,127.39,0.063]
[1743513280166,26.49744886,127.43,127.39,0.063]
[1743513280167,18.64964886,127.42,127.39,0.063]
[1743513280366,15.22496533,127.43,127.39,0.063]
[1743513280679,33.87461419,127.43,127.39,0.063]
[1743513281955,26.02681419,127.42,127.39,0.063]
[1743513283275,33.87541419,127.42,127.39,0.063]
[1743513283478,18.64964886,127.42,127.39,0.063]
[1743513283680,26.49764886,127.42,127.39,0.063]
[1743513283881,33.87481419,127.42,127.39,0.063]
[1743513284081,33.87491419,127.42,127.39,0.063]
[1743513284471,7.37716533,127.42,127.39,0.063]
[1743513284667,26.02681419,127.43,127.39,0.063]
[1743513284872,18.64964886,127.43,127.39,0.063]
[1743513285085,33.87421419,127.43,127.39,0.063]
[1743513286993,15.22526533,127.42,127.39,0.063]
[1743513287176,7.37716533,127.41,127.39,0.063]
[1743513288070,15.22576533,127.41,127.39,0.063]
[1743513292679,26.02681419,127.4,127.39,0.063]
[1743513294298,33.87601419,127.4,127.39,0.063]
[1743513294801,34.16033733,127.4,127.39,0.063]
[1743513295879,35.68703733,127.4,127.39,0.063]
[1743513296285,117.38703733,127.4,127.39,0.063]
[1743513298395,7.37716533,127.37,127.35,0.063]
[1743513298589,7.8517,127.36,127.35,0.063]
[1743513298788,34.16283733,127.36,127.35,0.063]
[1743513301003,38.933972,127.33,127.32,0.0001]
[1743513301209,18.933972,127.32,127.25,0.063]
[1743513301505,7.37716533,127.27,127.25,0.063]
[1743513301701,7.37716533,127.28,127.25,0.063]
[1743513301900,7.37716533,127.27,127.25,0.063]
[1743513302684,15.23376533,127.28,127.25,0.063]
[1743513303204,7.8566,127.28,127.25,0.063]
[1743513303409,33.88281419,127.29,127.25,0.063]
[1743513304010,18.64964886,127.3,127.25,0.063]
[1743513304398,0.28432314,127.36,127.27,6.92]
[1743513304590,7.37716533,127.33,127.27,6.92]
[1743513304796,8.13602314,127.36,127.27,6.92]
[1743513304797,7.37716533,127.32,127.27,6.92]
[1743513305307,7.37716533,127.31,127.27,6.92]
[1743513305502,26.02681419,127.32,127.27,14.7772]
[1743513306009,26.02681419,127.32,127.27,6.92]
[1743513306487,7.37716533,127.31,127.27,6.92]
[1743513306683,26.02681419,127.3,127.27,6.92]
[1743513306894,26.02681419,127.29,127.26,0.063]
[1743513307704,30.21117887,127.29,127.26,0.063]
[1743513312313,11.56153001,127.29,127.26,0.063]
[1743513313118,11.56153001,127.31,127.26,0.063]
[1743513314117,11.56153001,127.3,127.26,0.063]
[1743513315007,11.56153001,127.3,127.26,6.963]
[1743513315714,11.56153001,127.31,127.26,6.963]
[1743513316416,11.56153001,127.31,127.27,7.8573]
[1743513317816,11.56153001,127.3,127.27,7.8573]
[1743513318521,11.56153001,127.31,127.27,7.8573]
[1743513318699,11.56153001,127.3,127.27,7.8573]
[1743513319227,11.56153001,127.3,127.26,14.8206]
[1743513320618,81.7,127.32,127.26,14.8206]
[1743513320804,81.7,127.32,127.26,36.0678]
[1743513321124,19.41513001,127.33,127.26,36.0678]
[1743513324345,11.56153001,127.33,127.26,36.0678]
[1743513324641,11.56153001,127.34,127.26,36.0678]
[1743513325446,11.56153001,127.36,127.29,26.2956]
[1743513325606,11.56153001,127.36,127.3,6.94]
[1743513326310,28.393872,127.37,127.31,7.8548]
[1743513326614,39.95540201,127.37,127.31,7.8548]
[1743513327033,13.16993001,127.37,127.31,27.4919]
[1743513327333,1.6084,127.37,127.31,27.4919]
[1743513327518,21.02113001,127.37,127.31,27.4919]
[1743513329241,11.56153001,127.37,127.31,27.4919]
[1743513329611,93.26153001,127.38,127.31,29.0026]
[1743513329807,89.08828896,127.38,127.31,29.0026]
[1743513330418,96.93888896,127.38,127.31,29.0026]
[1743513331235,7.38828896,127.37,127.31,29.0026]
[1743513331735,7.38828896,127.33,127.28,9.3566]
[1743513332028,119.10375584,127.38,127.26,0.063]
[1743513332029,7.38828896,127.29,127.26,0.063]
[1743513332206,25.482072,127.34,127.26,0.063]
[1743513332207,7.38828896,127.28,127.26,0.063]
[1743513332412,7.38828896,127.27,127.26,0.063]
[1743513332820,18.933972,127.31,127.26,0.063]
[1743513333026,15.24368896,127.3,127.26,0.063]
[1743513333230,7.38828896,127.29,127.26,0.063]
[1743513333823,7.38828896,127.3,127.26,0.063]
[1743513334734,26.32226096,127.31,127.26,0.063]
[1743513335630,7.38828896,127.32,127.26,0.063]
[1743513335828,11.55515981,127.32,127.26,0.063]
[1743513336035,93.25515981,127.33,127.26,0.063]
[1743513336625,93.25515981,127.33,127.27,6.96]
[1743513336827,11.55515981,127.32,127.27,6.96]
[1743513338338,11.55515981,127.32,127.28,7.8566]
[1743513338545,11.55515981,127.3,127.27,6.96]
[1743513338723,26.50394886,127.32,127.27,6.96]
[1743513339040,11.55515981,127.3,127.27,6.96]
[1743513339234,11.55515981,127.3,127.26,7.9206]
[1743513341245,19.41055981,127.3,127.26,7.9206]
[1743513341543,11.55515981,127.3,127.26,7.9206]
[1743513342954,19.41015981,127.31,127.26,7.9206]
[1743513343530,11.55515981,127.3,127.26,7.9206]
[1743513344945,19.41055981,127.3,127.26,0.063]
[1743513349531,11.55515981,127.29,127.26,0.063]
[1743513351655,11.55515981,127.28,127.26,0.063]
[1743513351857,11.83948295,127.27,127.26,0.063]
[1743513352053,30.48913181,127.27,127.26,0.063]
[1743513352753,20.555072,127.26,127.25,0.063]
[1743513353051,20.555072,127.26,127.25,0.0001]
[1743513353052,43.66539162,127.26,127.25,0.0001]
[1743513353251,18.933972,127.24,127.21,0.0001]
[1743513353455,30.48913181,127.22,127.21,0.0001]
[1743513353766,38.34943181,127.22,127.21,0.0001]
[1743513361371,20.550972,127.21,127.18,0.063]
[1743513361567,30.48913181,127.19,127.18,0.063]
[1743513361948,37.13843181,127.19,127.18,0.063]
[1743513362142,37.13843181,127.19,127.14,0.063]
[1743513362365,30.20480867,127.15,127.14,0.063]
[1743513362559,30.48913181,127.15,127.14,0.063]
[1743513363367,38.35383181,127.15,127.14,0.063]
[1743513367070,51.51189162,127.15,127.14,0.063]
[1743513368075,39.95673181,127.15,127.14,0.063]
[1743513368977,38.35383181,127.15,127.14,0.063]
[1743513370174,30.48913181,127.15,127.14,0.063]
[1743513371096,38.35383181,127.15,127.14,0.063]
[1743513371297,49.90899162,127.15,127.14,0.063]
[1743513371782,38.35383181,127.15,127.14,0.063]
[1743513372579,49.90899162,127.15,127.14,0.063]
[1743513374291,38.35383181,127.15,127.14,0.063]
[1743513374481,49.90899162,127.15,127.14,0.063]
[1743513375381,49.90899162,127.15,127.13,0.063]
[1743513375582,23.11031962,127.14,127.13,0.063]
[1743513375966,18.933972,127.13,127.11,0.063]
[1743513376162,93.25515981,127.12,127.11,0.063]
[1743513377680,101.12165981,127.12,127.11,0.063]
[1743513378180,120.05563181,127.12,127.11,0.063]
[1743513381667,115.92058878,127.12,127.11,0.063]
[1743513389771,108.05408878,127.12,127.11,0.063]
[1743513391092,108.05408878,127.12,127.11,0.063]
[1743513391972,26.798072,127.16,127.11,0.063]
[1743513392174,7.42011678,127.15,127.11,0.063]
[1743513392890,7.42011678,127.16,127.11,0.063]
[1743513393189,7.42011678,127.16,127.11,7.9302]
[1743513393369,15.28421678,127.16,127.11,7.9302]
[1743513393771,7.42011678,127.14,127.11,0.063]
[1743513394593,7.42011678,127.13,127.11,0.063]
[1743513395385,15.28631678,127.13,127.11,0.063]
[1743513395695,7.42011678,127.13,127.11,0.063]
[1743513395897,15.28621678,127.13,127.11,0.063]
[1743513396109,7.42011678,127.13,127.11,0.063]
[1743513396999,89.12011678,127.15,127.11,0.063]
[1743513397179,81.7,127.15,127.11,0.063]
[1743513397500,89.12011678,127.15,127.11,0.063]
[1743513400108,7.42011678,127.15,127.11,0.063]
[1743513401089,7.42011678,127.15,127.11,6.983]
[1743513401285,26.35408878,127.17,127.11,13.3561]
[1743513401485,7.42011678,127.16,127.11,13.3561]
[1743513403900,15.28441678,127.16,127.12,7.8665]
[1743513404389,7.42011678,127.15,127.11,21.223]
[1743513404698,7.42011678,127.15,127.11,14.8499]
[1743513404903,7.42011678,127.14,127.11,14.8499]
[1743513405602,7.42011678,127.14,127.11,7.9299]
[1743513405909,7.42011678,127.14,127.11,0.063]
[1743513406299,15.28511678,127.15,127.11,0.063]
[1743513409909,7.865,127.15,127.11,0.063]
[1743513411705,7.895,127.15,127.11,0.063]
[1743513413785,0.03,127.15,127.11,0.063]
[1743513414511,7.45011678,127.15,127.11,0.063]
[1743513415310,7.42011678,127.14,127.11,0.063]
[1743513415905,7.45011678,127.15,127.11,0.063]
[1743513419417,15.31521678,127.15,127.11,0.063]
[1743513419714,7.42011678,127.14,127.11,0.063]
[1743513421723,0.03,127.15,127.11,0.063]
[1743513427096,0.03,127.15,127.11,6.5084]
[1743513428136,0.03,127.15,127.12,7.8665]
[1743513428303,0.03,127.15,127.13,6.86]
[1743513431535,0.03,127.15,127.13,14.7257]
[1743513432521,0.03,127.15,127.13,16.2741]
[1743513435710,0.03,127.18,127.14,18.933972]
[1743513436821,0.03,127.18,127.15,27.5265]
[1743513437733,0.03,127.18,127.15,7.8647]
[1743513438827,0.03,127.18,127.14,7.8653]
[1743513439641,0.03,127.18,127.14,27.5286]
[1743513440944,0.03,127.18,127.17,20.0]
[1743513441166,0.03,127.18,127.17,26.86]
[1743513441731,7.45011678,127.26,127.17,28.75742314]
[1743513442341,7.42011678,127.25,127.17,28.4731]
[1743513442549,7.42011678,127.24,127.17,28.4731]
[1743513442858,7.42011678,127.22,127.18,6.86]
[1743513443066,7.42011678,127.21,127.18,6.86]
[1743513443348,7.42011678,127.19,127.13,7.8655]
[1743513443560,7.42011678,127.18,127.13,14.7255]
[1743513444035,7.42011678,127.18,127.13,7.8655]
[1743513444523,7.42011678,127.19,127.13,7.8655]
[1743513445130,7.8628,127.18,127.13,7.8655]
[1743513445940,7.8628,127.18,127.12,7.8663]
[1743513445941,7.42011678,127.17,127.12,7.8663]
[1743513446125,7.42011678,127.17,127.12,14.7263]
[1743513446739,16.85811678,127.18,127.12,14.7263]
[1743513446941,8.99531678,127.18,127.12,14.7263]
[1743513447341,7.42011678,127.19,127.12,14.7263]
[1743513447555,90.64291678,127.21,127.15,20.0]
[1743513447718,1.5228,127.21,127.16,6.86]
[1743513447923,15.28011678,127.23,127.16,6.86]
[1743513449043,15.28011678,127.23,127.17,7.8634]
[1743513449241,0.03,127.18,127.17,7.8634]
[1743513450743,0.03,127.18,127.16,6.86]
[1743513452048,0.03,127.18,127.13,14.8087]
[1743513452232,7.8928,127.18,127.13,14.8087]
[1743513454550,15.31291678,127.18,127.13,6.943]
[1743513454935,15.31291678,127.18,127.13,14.8089]
[1743513455454,7.8928,127.18,127.13,14.8089]
[1743513457052,0.03,127.18,127.13,14.8089]
[1743513457251,0.03,127.18,127.13,34.4738]
[1743513458756,0.03,127.18,127.13,14.8089]
[1743513460933,0.03,127.18,127.13,6.943]
[1743513461134,0.03,127.18,127.13,0.063]
[1743513461340,0.03,127.18,127.13,6.923]
[1743513461546,7.45011678,127.18,127.13,6.923]
[1743513462737,15.31351678,127.18,127.13,6.923]
[1743513463244,0.03,127.18,127.13,6.923]
[1743513463542,7.8928,127.18,127.13,6.923]
[1743513465063,7.8928,127.18,127.13,14.7883]
[1743513466350,7.42011678,127.17,127.13,6.923]
[1743513467143,15.31291678,127.18,127.13,6.923]
[1743513467343,7.42011678,127.17,127.13,0.063]
[1743513467661,7.42011678,127.15,127.13,0.063]
[1743513468864,18.933972,127.17,127.13,0.063]
[1743513468865,7.42011678,127.16,127.13,0.063]
[1743513469567,15.28401678,127.17,127.13,0.063]
[1743513478971,7.8639,127.17,127.13,0.063]
[1743513480278,0.03,127.18,127.13,0.063]
[1743513480453,0.03,127.18,127.13,26.923]
[1743513482074,7.893,127.18,127.13,26.923]
[1743513482252,7.893,127.18,127.13,34.7884]
[1743513482981,7.893,127.18,127.13,26.923]
[1743513482982,15.31311678,127.18,127.13,26.923]
[1743513483273,15.31311678,127.18,127.13,0.063]
[1743513483274,9.05571678,127.17,127.13,0.063]
[1743513483475,7.42011678,127.16,127.13,0.063]
[1743513484279,7.8647,127.15,127.13,0.063]
[1743513485252,15.28481678,127.15,127.13,0.063]
[1743513487277,7.8647,127.15,127.13,0.063]
[1743513491287,15.28431678,127.16,127.13,0.063]
[1743513492763,1.6356,127.17,127.13,0.063]
[1743513492964,26.54274886,127.18,127.13,0.063]
[1743513493189,33.96286564,127.18,127.13,0.063]
[1743513493360,7.42011678,127.17,127.13,0.063]
[1743513494179,15.28381678,127.17,127.13,0.063]
[1743513495455,18.67964886,127.18,127.13,0.063]
[1743513495456,0.03,127.18,127.13,6.923]
[1743513496257,0.03,127.18,127.14,7.8653]
[1743513497988,26.38408878,127.18,127.13,6.923]
[1743513498165,7.42011678,127.17,127.13,6.923]
[1743513499386,0.03,127.18,127.13,14.7886]
[1743513499562,0.03,127.18,127.13,34.4535]
[1743513505716,0.03,127.18,127.15,18.933972]
[1743513506412,0.03,127.18,127.16,20.0]
[1743513508699,0.03,127.18,127.16,27.864]
[1743513508907,0.03,127.18,127.16,20.0]
[1743513510078,0.03,127.18,127.14,7.8653]
[1743513510984,0.03,127.18,127.14,14.7253]
[1743513511589,0.03,127.18,127.14,6.86]
[1743513511785,0.03,127.18,127.14,14.7253]
[1743513512903,0.03,127.18,127.14,6.86]
[1743513513406,0.03,127.18,127.14,26.86]
[1743513513702,0.03,127.18,127.14,34.7253]
[1743513515789,0.03,127.18,127.14,54.3886]
[1743513517402,0.03,127.18,127.17,20.0]
[1743513518905,0.03,127.18,127.17,27.8634]
[1743513531604,0.03,127.18,127.17,46.797372]
[1743513532998,0.03,127.18,127.17,27.8634]
[1743513543735,0.03,127.18,127.17,27.9264]
[1743513544337,0.03,127.18,127.17,34.7864]
[1743513547717,0.03,127.18,127.17,53.720372]
[1743513548135,0.03,127.18,127.17,60.13310377]
[1743513549332,0.03,127.18,127.17,34.7864]
[1743513554962,0.03,127.18,127.17,53.720372]
[1743513555542,0.03,127.18,127.17,34.7864]
[1743513556754,0.03,127.18,127.17,53.720372]
[1743513557552,0.03,127.18,127.17,35.07072314]
[1743513557859,0.03,127.18,127.17,53.720372]
[1743513559060,1.5666,127.26,127.19,7.8622]
[1743513559645,9.4245,127.26,127.19,27.5178]
[1743513565766,16.84461678,127.26,127.19,7.8622]
[1743513565953,36.48941678,127.26,127.19,7.8622]
[1743513567671,36.48941678,127.26,127.18,7.8628]
[1743513572771,16.84461678,127.26,127.18,27.5199]
[1743513574767,13.81881678,127.23,127.18,6.86]
[1743513575077,13.81881678,127.23,127.17,14.7862]
[1743513575274,13.81881678,127.23,127.17,0.063]
[1743513575462,1.5742,127.21,127.17,0.063]
[1743513575657,7.42011678,127.19,127.17,0.063]
[1743513576758,23.17721678,127.18,127.17,0.063]
[1743513577782,42.11118878,127.18,127.17,0.063]
[1743513578194,61.76828878,127.18,127.14,0.063]
[1743513578355,27.70443992,127.15,127.14,0.063]
[1743513579180,35.56913992,127.15,127.14,0.063]
[1743513579390,35.28481678,127.15,127.14,0.063]
[1743513579985,7.7152,127.14,127.13,0.063]
[1743513580187,44.8157839,127.14,127.13,0.063]
[1743513580390,15.13531678,127.14,127.13,0.063]
[1743513581297,7.7152,127.14,127.13,0.063]
[1743513581799,1.5269,127.14,127.13,0.063]
[1743513582268,14.0453,127.17,127.13,0.063]
[1743513582458,6.1817,127.17,127.13,0.063]
[1743513582658,1.5547,127.18,127.13,0.063]
[1743513583076,9.4176,127.18,127.13,0.063]
[1743513584184,16.83771678,127.18,127.13,0.063]
[1743513584383,7.42011678,127.17,127.13,0.063]
[1743513584888,9.4176,127.18,127.13,0.063]
[1743513584889,7.42011678,127.16,127.13,0.063]
[1743513585584,7.8647,127.15,127.13,0.063]
[1743513587785,7.8641,127.16,127.13,0.063]
[1743513588184,1.5547,127.18,127.13,0.063]
[1743513588376,81.7,127.19,127.14,6.86]
[1743513588686,7.862,127.2,127.14,6.86]
[1743513589072,15.28211678,127.2,127.14,6.86]
[1743513589486,15.28211678,127.2,127.14,14.7251]
[1743513590884,7.862,127.2,127.14,14.7251]
[1743513591485,16.0658,127.21,127.14,14.7251]
[1743513591792,0.03,127.18,127.14,14.7251]
[1743513592166,0.03,127.18,127.14,16.2569]
[1743513592391,0.03,127.18,127.14,42.2362]
[1743513592774,0.03,127.18,127.17,20.0]
[1743513594962,0.03,127.18,127.17,27.8634]
[1743513596391,0.03,127.18,127.17,46.797372]
[1743513600087,7.8882,127.26,127.18,18.933972]
[1743513600269,7.8882,127.26,127.19,6.86]
[1743513601295,0.03,127.26,127.19,6.86]
[1743513601483,0.03,127.26,127.19,13.20489264]
[1743513602293,0.03,127.26,127.2,7.8616]
[1743513603102,0.03,127.26,127.2,11.85586827]
[1743513603272,7.45011678,127.26,127.2,11.85586827]
[1743513603594,0.03,127.26,127.2,11.85586827]
[1743513606087,0.03,127.26,127.2,31.50986827]
[1743513608278,0.03,127.26,127.2,11.85586827]
[1743513609394,0.03,127.26,127.2,31.50986827]
[1743513609598,0.03,127.26,127.21,18.79181043]
[1743513609977,0.03,127.26,127.22,0.14216157]
[1743513610193,0.03,127.26,127.23,6.86]
[1743513610406,0.03,127.26,127.25,20.0]
[1743513611703,0.03,127.26,127.25,27.8585]
[1743513612499,0.03,127.26,127.24,7.8589]
[1743513612803,0.03,127.26,127.23,6.86]
[1743513615704,0.03,127.26,127.23,14.7196]
[1743513616009,0.03,127.26,127.23,34.369]
[1743513617505,0.03,127.26,127.25,20.0]
[1743513618514,0.03,127.26,127.25,27.8585]
[1743513619009,0.03,127.26,127.25,46.792472]
[1743513619010,0.0001,127.26,127.25,46.792472]
[1743513623610,0.0001,127.26,127.25,27.8585]
[1743513625318,0.0001,127.26,127.24,7.8591]
[1743513626917,0.0001,127.26,127.25,6.86]
[1743513627509,0.0001,127.26,127.25,14.7185]
[1743513629122,0.0001,127.26,127.25,15.00282314]
[1743513629311,0.0001,127.26,127.25,33.652472]
[1743513631902,0.03,127.29,127.28,20.0]
[1743513632506,0.03,127.29,127.28,27.8566]
[1743513636718,0.03,127.29,127.28,27.8566]
[1743513636896,0.03,127.31,127.28,66.432272]
[1743513637223,0.03,127.31,127.29,7.14432314]
[1743513638001,0.03,127.31,127.3,18.933972]
[1743513639124,0.03,127.31,127.3,26.789372]
[1743513640737,0.0001,127.31,127.3,26.789372]
[1743513642328,1.6528,127.37,127.34,7.8529]
[1743513642625,6.1172,127.38,127.35,6.84]
[1743513643323,0.03,127.39,127.35,6.84]
[1743513644831,0.03,127.39,127.36,7.8517]
[1743513645509,0.03,127.39,127.36,11.77735551]
[1743513648251,0.03,127.39,127.36,3.92565551]
[1743513648410,0.03,127.39,127.37,6.84]
[1743513648605,0.03,127.39,127.34,7.8527]
[1743513648931,7.8505,127.38,127.35,6.84]
[1743513651332,7.8505,127.38,127.33,7.8532]
[1743513651515,1.6504,127.37,127.34,6.84]
[1743513652432,9.5016,127.37,127.32,7.8539]
[1743513652623,9.5016,127.37,127.34,6.84]
[1743513653337,1.6504,127.37,127.34,6.84]
[1743513656017,1.6504,127.37,127.34,14.6929]
[1743513657430,6.3615,127.39,127.34,14.6929]
[1743513659541,25.75612521,127.39,127.33,6.84]
[1743513659842,7.38877237,127.38,127.32,14.6942]
[1743513660518,8.92237237,127.35,127.31,0.063]
[1743513660727,7.38877237,127.33,127.31,0.063]
[1743513661620,7.8542,127.32,127.31,0.063]
[1743513662126,7.8538,127.33,127.31,0.063]
[1743513662343,14.3254,127.34,127.31,0.063]
[1743513662533,11.55359239,127.33,127.31,0.063]
[1743513663033,11.55359239,127.32,127.31,0.063]
[1743513663635,19.40779239,127.32,127.31,0.063]
[1743513665643,19.40779239,127.32,127.22,18.64964886]
[1743513665644,59.48226439,127.32,127.22,18.64964886]
[1743513665852,11.55359239,127.29,127.23,6.84]
[1743513666750,11.55359239,127.3,127.24,6.84]
[1743513667650,11.55359239,127.3,127.25,7.8585]
[1743513668736,19.40899239,127.31,127.25,7.8585]
[1743513669854,11.55359239,127.31,127.25,7.8585]
[1743513670062,19.40849239,127.31,127.25,7.8585]
[1743513670947,11.55359239,127.3,127.25,7.8585]
[1743513671254,6.2925,127.29,127.24,7.8588]
[1743513672251,19.41019239,127.28,127.22,7.8603]
[1743513672448,19.41019239,127.28,127.22,14.7003]
[1743513673047,13.06789239,127.27,127.22,14.7003]
[1743513673960,13.06789239,127.27,127.21,7.8607]
[1743513673961,11.55359239,127.26,127.21,7.8607]
[1743513674258,11.55359239,127.25,127.2,14.7013]
[1743513674555,19.41219239,127.25,127.2,14.7013]
[1743513675236,19.41219239,127.25,127.2,7.8613]
[1743513675439,19.41219239,127.25,127.2,14.7013]
[1743513675947,19.41149239,127.26,127.2,14.7013]
[1743513676264,19.41149239,127.26,127.2,7.8613]
[1743513676438,19.41149239,127.26,127.2,14.7013]
[1743513676863,11.55359239,127.26,127.2,14.7013]
[1743513677548,11.55359239,127.26,127.2,34.3553]
[1743513677747,20.92539239,127.27,127.2,34.3553]
[1743513678456,1.5143,127.27,127.2,34.3553]
[1743513679243,1.5143,127.27,127.23,20.0]
[1743513679583,81.7,127.28,127.24,6.86]
[1743513679858,1.5518,127.31,127.24,6.86]
[1743513680057,0.03,127.32,127.26,27.5027]
[1743513681447,0.03,127.32,127.29,20.0]
[1743513681644,0.03,127.32,127.3,6.86]
[1743513682161,0.03,127.32,127.3,14.7153]
[1743513683565,0.03,127.32,127.3,6.86]
[1743513683968,0.03,127.32,127.28,7.8563]
[1743513684163,7.8842,127.32,127.27,14.697]
[1743513684547,19.43779239,127.32,127.27,6.84]
[1743513685068,11.55359239,127.31,127.27,6.84]
[1743513686372,11.55359239,127.31,127.27,14.6972]
[1743513686959,11.58359239,127.32,127.27,14.6972]
[1743513687159,0.03,127.32,127.27,14.6972]
[1743513689756,0.03,127.32,127.27,34.3404]
[1743513693852,0.03,127.32,127.27,35.9394]
[1743513694763,0.03,127.32,127.27,75.2259]
[1743513695470,0.03,127.32,127.3,20.0]
[1743513695669,0.03,127.32,127.27,35.9394]
[1743513697070,0.03,127.32,127.27,14.6972]
[1743513697769,0.03,127.32,127.27,14.7602]
[1743513699863,0.03,127.32,127.27,6.903]
[1743513700465,0.03,127.32,127.27,14.7602]
[1743513701583,7.8842,127.32,127.27,14.7602]
[1743513701969,0.03,127.32,127.27,34.4034]
[1743513702168,0.03,127.32,127.28,20.25364886]